lending/lending_fUSD_20251020
["ID","MTS","AMOUNT","RATE_DAILY","PERIOD"]
[391862099,1760932236121,-527.8730015,0.00017331,2]
[391862100,1760932236131,-740.1386707,0.00017331,2]
[391862101,1760932236140,-153.036251,0.00017343,2]
[391862102,1760932236149,-154.917285,0.00017343,2]
[391862103,1760932236158,-155.121905,0.00017343,2]
[391862104,1760932236167,-152.09315825,0.00017343,2]
[391862105,1760932236181,-1533.4452517,0.00017343,2]
[391862106,1760932236190,-166.42,0.00017354,2]
[391862107,1760932236204,-1301.48,0.00017365,2]
[391862108,1760932236213,-500.0,0.0001737,2]
[391862109,1760932236223,-500.0,0.00017424,2]
[391862110,1760932236233,-500.0,0.00017479,2]
[391862111,1760932236243,-500.0,0.00017534,2]
[391862112,1760932236252,-500.0,0.00017589,2]
[391862113,1760932236262,-151.0,0.00017629,2]
[391862114,1760932236271,-1301.48,0.00017639,2]
[391862115,1760932236281,-500.0,0.00017643,2]
[391862116,1760932236290,-500.0,0.00017698,2]
[391862117,1760932236300,-152.311622,0.00017712,2]
[391862118,1760932236310,-3000.0,0.00017712,2]
[391862119,1760932236321,-500.0,0.00017753,2]
[391862120,1760932236331,-724.26947883,0.00017761,2]
[391862121,1760932236341,-514.30865827,0.00017808,2]
[391862122,1760932236352,-500.0,0.00017808,2]
[391862123,1760932236362,-206.76617784,0.00017812,2]
[391862124,1760932236371,-6563.94451,0.0001785,2]
[391862125,1760932236380,-500.0,0.00017863,2]
[391862126,1760932236390,-1301.48,0.00017913,2]
[391862127,1760932236399,-500.0,0.00017918,2]
[391862128,1760932236408,-500.0,0.00017972,2]
[391862129,1760932236417,-501.22441967,0.00017973,2]
[391862130,1760932236427,-500.0,0.00017973,2]
[391862131,1760932236436,-500.0,0.00017973,2]
[391862132,1760932236450,-500.0,0.00017973,2]
[391862133,1760932236459,-500.0,0.00017973,2]
[391862134,1760932236469,-500.0,0.00017973,2]
[391862135,1760932236478,-500.0,0.00017973,2]
[391862136,1760932236490,-500.0,0.00017973,2]
[391862137,1760932236499,-500.0,0.00017973,2]
[391862138,1760932236509,-500.0,0.00017973,2]
[391862139,1760932236520,-500.0,0.00017973,2]
[391862140,1760932236530,-500.0,0.00017973,2]
[391862141,1760932236539,-500.0,0.00017973,2]
[391862142,1760932236549,-500.0,0.00017973,2]
[391862143,1760932236558,-500.0,0.00017973,2]
[391862144,1760932236568,-500.0,0.00017973,2]
[391862145,1760932236577,-500.0,0.00017973,2]
[391862146,1760932236587,-500.0,0.00017973,2]
[391862147,1760932236596,-500.0,0.00017973,2]
[391862148,1760932236605,-500.0,0.00017973,2]
[391862149,1760932236615,-157.55456316,0.00017973,2]
[391862150,1760932236624,-500.0,0.00017973,2]
[391862151,1760932236634,-500.0,0.00017973,2]
[391862152,1760932236644,-500.0,0.00017973,2]
[391862153,1760932236655,-500.0,0.00017973,2]
[391862154,1760932236664,-500.0,0.00017973,2]
[391862155,1760932236673,-248.5,0.0001798,2]
[391862156,1760932236683,-300.0,0.00017999,2]
[391862157,1760932236692,-86177.32670541,0.00018,2]
[391862158,1760932236710,-1004.41808677,0.00018,2]
[391862159,1760932236721,-4385.28474669,0.00018,2]
[391862161,1760932237462,-266.938,0.000149,2]
[391862348,1760932239746,-723.46611907,0.000149,2]
[391862350,1760932239756,-151.0,0.00015,2]
[391862352,1760932239765,-151.0,0.00015,2]
[391862354,1760932239774,-151.0,0.00015109,2]
[391862356,1760932239783,-235.08326176,0.00015218,2]
[391862358,1760932239793,-990.40411898,0.00015991,2]
[391862360,1760932239802,-2570.23650035,0.00018,2]
[391862363,1760932239817,-568.7745232,0.00018,2]
[391862365,1760932239828,-92071.88314636,0.00018,2]
[391862367,1760932239838,-7951.5607078,0.00018,2]
[391862369,1760932239847,-500.0,0.00018027,2]
[391862371,1760932239856,-500.0,0.00018082,2]
[391862373,1760932239865,-1000.0,0.00018082,2]
[391862375,1760932239875,-500.0,0.00018137,2]
[391862377,1760932239884,-3410.0,0.00018178,2]
[391862379,1760932239893,-786.0,0.00018178,2]
[391862381,1760932239902,-1268.0,0.00018178,2]
[391862383,1760932239911,-2051.0,0.00018178,2]
[391862385,1760932239920,-907.265,0.00018178,2]
[391862386,1760932239929,-2657.368,0.00018178,2]
[391862388,1760932239938,-1199.155,0.00018178,2]
[391862391,1760932239947,-614.323,0.00018178,2]
[391862393,1760932239963,-1311.246,0.00018178,2]
[391862395,1760932239972,-576.785,0.00018178,2]
[391862397,1760932239981,-831.0,0.00018178,2]
[391862399,1760932239990,-6440.0,0.00018178,2]
[391862400,1760932239999,-2591.0,0.00018178,2]
[391862402,1760932240009,-580.202,0.00018178,2]
[391862404,1760932240019,-6450.0,0.00018178,2]
[391862406,1760932240028,-3079.0,0.00018178,2]
[391862408,1760932240038,-1301.48,0.00018187,2]
[391862411,1760932240048,-500.0,0.00018192,2]
[391862413,1760932240057,-166.42,0.00018222,2]
[391862415,1760932240067,-234.0,0.00018241,2]
[391862417,1760932240077,-500.0,0.00018246,2]
[391862419,1760932240086,-190.970454,0.00018247,2]
[391862421,1760932240095,-190.970454,0.00018247,2]
[391862423,1760932240104,-190.970454,0.00018247,2]
[391862424,1760932240114,-190.970454,0.00018247,2]
[391862426,1760932240123,-3500.0,0.0001826,2]
[391862428,1760932240132,-500.0,0.00018301,2]
[391862430,1760932240141,-300.0,0.00018355,2]
[391862433,1760932240150,-500.0,0.00018356,2]
[391862435,1760932240160,-151.0,0.00018356,2]
[391862436,1760932240169,-152.946879,0.00018356,2]
[391862439,1760932240179,-764.624561,0.00018356,2]
[391862440,1760932240188,-764.624561,0.00018356,2]
[391862442,1760932240198,-764.624561,0.00018356,2]
[391862444,1760932240211,-764.624561,0.00018356,2]
[391862446,1760932240220,-152.528923,0.00018356,2]
[391862448,1760932240230,-190.970454,0.00018356,2]
[391862450,1760932240239,-190.970454,0.00018356,2]
[391862452,1760932240249,-190.970454,0.00018356,2]
[391862455,1760932240259,-190.970454,0.00018356,2]
[391862457,1760932240269,-153.93592,0.00018356,2]
[391862458,1760932240278,-87274.6,0.00018356,2]
[391862460,1760932240288,-500.0,0.00018411,2]
[391862462,1760932240298,-3292.0,0.00018457,2]
[391862465,1760932240311,-1301.48,0.00018461,2]
[391862466,1760932240320,-500.0,0.00018466,2]
[391862468,1760932240330,-500.0,0.0001852,2]
[391862470,1760932240339,-1000.0,0.00018521,2]
[391862472,1760932240348,-1000.0,0.00018521,2]
[391862474,1760932240357,-502.95694503,0.00018521,2]
[391862476,1760932240367,-209.69026129,0.00018521,2]
[391862478,1760932240376,-1000.0,0.00018521,2]
[391862480,1760932240385,-1000.0,0.00018521,2]
[391862483,1760932240394,-501.85343949,0.00018521,2]
[391862484,1760932240403,-1000.0,0.00018521,2]
[391862486,1760932240412,-1000.0,0.00018521,2]
[391862488,1760932240422,-1000.0,0.00018521,2]
[391862490,1760932240432,-282.0079993,0.00018521,2]
[391862492,1760932240444,-1001.76089721,0.00018521,2]
[391862494,1760932240458,-525.46413485,0.00018521,2]
[391862496,1760932240467,-1000.0,0.00018521,2]
[391862498,1760932240476,-868.3588656,0.00018521,2]
[391862500,1760932240488,-1000.0,0.00018521,2]
[391862502,1760932240497,-926.40327844,0.00018521,2]
[391862504,1760932240506,-1000.0,0.00018521,2]
[391862506,1760932240516,-1000.0,0.00018521,2]
[391862508,1760932240525,-1000.0,0.00018521,2]
[391862510,1760932240534,-1000.0,0.00018521,2]
[391862512,1760932240543,-1000.0,0.00018521,2]
[391862514,1760932240553,-1000.0,0.00018521,2]
[391862516,1760932240563,-1000.0,0.00018521,2]
[391862518,1760932240571,-736.0,0.00018564,2]
[391862520,1760932240581,-500.0,0.00018575,2]
[391862522,1760932240590,-500.0,0.0001863,2]
[391862525,1760932240599,-578.42970042,0.00018685,2]
[391862527,1760932240609,-1301.48,0.00018735,2]
[391862528,1760932240619,-1000.0,0.0001876,2]
[391862530,1760932240628,-151.74,0.000188,2]
[391862533,1760932240638,-151.74,0.000188,2]
[391862535,1760932240647,-1057.47451583,0.00018808,2]
[391862537,1760932240656,-6563.94452,0.0001885,2]
[391862538,1760932240666,-300.0,0.00018999,2]
[391862540,1760932240676,-707.21324685,0.00019,2]
[391862543,1760932240685,-258707.51969776,0.00019,2]
[391862545,1760932240694,-300.0,0.00019,2]
[391862547,1760932240706,-474.2240325,0.00019,2]
[391862549,1760932240716,-951.05307363,0.00019001,2]
[391862551,1760932240725,-1301.60720165,0.00019008,2]
[391862553,1760932240734,-1000.0,0.00019047,2]
[391862555,1760932240743,-1000.0,0.00019068,2]
[391862557,1760932240753,-266.26283854,0.00019068,2]
[391862559,1760932240762,-934.92150595,0.00019068,2]
[391862561,1760932240771,-247.88568406,0.00019068,2]
[391862563,1760932240780,-1500.0,0.00019068,2]
[391862565,1760932240791,-1500.0,0.00019068,2]
[391862567,1760932240802,-1459.75998998,0.00019068,2]
[391862569,1760932240811,-1502.60840371,0.00019068,2]
[391862571,1760932240820,-1500.0,0.00019068,2]
[391862573,1760932240829,-283.3799951,0.00019068,2]
[391862575,1760932240839,-655.63383568,0.00019068,2]
[391862577,1760932240848,-1500.0,0.00019068,2]
[391862579,1760932240857,-1002.44208721,0.00019068,2]
[391862581,1760932240866,-1500.0,0.00019068,2]
[391862583,1760932240875,-1500.0,0.00019068,2]
[391862585,1760932240884,-1500.0,0.00019068,2]
[391862587,1760932240893,-166.42,0.00019089,2]
[391862589,1760932240902,-3006.77567151,0.00019178,2]
[391862591,1760932240912,-151.0,0.00019178,2]
[391862593,1760932240921,-152.127661,0.00019178,2]
[391862595,1760932240931,-200.0,0.00019178,2]
[391862597,1760932240940,-165.67,0.00019438,2]
[391862599,1760932240949,-1000.0,0.00019438,2]
[391862601,1760932240962,-268.95185608,0.00019616,2]
[391862603,1760932240971,-2000.0,0.00019616,2]
[391862605,1760932240982,-627.62227748,0.00019616,2]
[391862607,1760932240991,-349.9311712,0.00019616,2]
[391862609,1760932241001,-2000.0,0.00019616,2]
[391862611,1760932241012,-2000.0,0.00019616,2]
[391862613,1760932241022,-165.67,0.00019697,2]
[391862615,1760932241031,-2000.0,0.000197,2]
[391862617,1760932241041,-156.587,0.00019726,2]
[391862619,1760932241051,-764.624561,0.00019727,7]
[391862621,1760932241061,-764.624561,0.00019727,7]
[391862623,1760932241075,-764.624561,0.00019727,7]
[391862625,1760932241087,-764.624561,0.00019727,7]
[391862627,1760932241097,-190.970454,0.00019727,7]
[391862629,1760932241109,-190.970454,0.00019727,7]
[391862631,1760932241120,-190.970454,0.00019727,7]
[391862633,1760932241132,-190.970454,0.00019727,7]
[391862635,1760932241144,-621.78829552,0.00019727,2]
[391862637,1760932241154,-6563.94451,0.0001985,2]
[391862639,1760932241166,-400.0,0.00019863,2]
[391862641,1760932241177,-325.80396758,0.000199,2]
[391862644,1760932241192,-166.42,0.00019957,2]
[391862646,1760932241210,-1162.0,0.00019965,2]
[391862648,1760932241221,-308.08468905,0.00019999,2]
[391862649,1760932241233,-203.19,0.0002,2]
[391862651,1760932241244,-41143.08290481,0.0002,5]
[391862653,1760932241255,-20000.00855465,0.0002,2]
[391862655,1760932241266,-10000.0,0.0002,2]
[391862657,1760932241277,-183.3,0.0002,2]
[391862660,1760932241287,-1000.0,0.00020116,2]
[391862662,1760932241298,-234.90166428,0.00020164,2]
[391862678,1760932241441,-2004.48852316,0.00020164,2]
[391862681,1760932241456,-2500.0,0.00020164,2]
[391862683,1760932241466,-411.48,0.00020187,2]
[391862685,1760932241475,-167.32254296,0.00020216,2]
[391862687,1760932241484,-1194.01084143,0.00020241,2]
[391862689,1760932241493,-162.380719,0.00020274,2]
[391862691,1760932241503,-4609.0,0.00020302,2]
[391862693,1760932241511,-624.49,0.00020396,2]
[391862695,1760932241519,-1000.0,0.00020548,2]
[391862696,1760932241528,-1000.0,0.00020548,2]
[391862698,1760932241536,-1000.0,0.00020548,2]
[391862700,1760932241545,-1000.0,0.00020548,2]
[391862702,1760932241554,-1000.0,0.00020548,2]
[391862704,1760932241563,-1000.0,0.00020548,2]
[391862706,1760932241572,-1000.0,0.00020548,2]
[391862708,1760932241581,-1000.0,0.00020548,2]
[391862710,1760932241591,-1000.0,0.00020548,2]
[391862712,1760932241599,-1000.0,0.00020548,2]
[391862714,1760932241608,-1000.0,0.00020548,2]
[391862716,1760932241617,-1000.0,0.00020548,2]
[391862718,1760932241626,-1000.0,0.00020548,2]
[391862720,1760932241634,-1000.0,0.00020548,2]
[391862722,1760932241643,-1000.0,0.00020548,2]
[391862724,1760932241652,-1000.0,0.00020548,2]
[391862726,1760932241661,-1000.0,0.00020548,2]
[391862728,1760932241670,-1000.0,0.00020548,2]
[391862730,1760932241679,-1000.0,0.00020548,2]
[391862732,1760932241687,-1000.0,0.00020548,2]
[391862734,1760932241696,-1000.0,0.00020548,2]
[391862736,1760932241709,-1000.0,0.00020548,2]
[391862738,1760932241717,-1000.0,0.00020548,2]
[391862740,1760932241726,-1000.0,0.00020548,2]
[391862742,1760932241735,-1000.0,0.00020548,2]
[391862744,1760932241744,-1000.0,0.00020548,2]
[391862746,1760932241752,-1000.0,0.00020548,2]
[391862748,1760932241761,-1000.0,0.00020548,2]
[391862750,1760932241770,-1000.0,0.00020548,2]
[391862752,1760932241779,-1000.0,0.00020548,2]
[391862754,1760932241788,-1000.0,0.00020548,2]
[391862756,1760932241796,-1000.0,0.00020548,2]
[391862758,1760932241805,-1000.0,0.00020548,2]
[391862759,1760932241813,-1000.0,0.00020548,2]
[391862761,1760932241822,-1000.0,0.00020548,2]
[391862763,1760932241831,-1000.0,0.00020548,2]
[391862765,1760932241840,-1000.0,0.00020548,2]
[391862767,1760932241850,-1000.0,0.00020548,2]
[391862769,1760932241859,-1000.0,0.00020548,2]
[391862772,1760932241868,-1000.0,0.00020548,2]
[391862773,1760932241877,-1000.0,0.00020548,2]
[391862775,1760932241886,-1000.0,0.00020548,2]
[391862778,1760932241896,-1000.0,0.00020548,2]
[391862779,1760932241905,-1000.0,0.00020548,2]
[391862781,1760932241915,-1000.0,0.00020548,2]
[391862784,1760932241924,-1000.0,0.00020548,2]
[391862785,1760932241933,-1000.0,0.00020548,2]
[391862787,1760932241942,-1000.0,0.00020548,2]
[391862789,1760932241952,-1000.0,0.00020548,2]
[391862791,1760932241963,-1000.0,0.00020548,2]
[391862794,1760932241973,-1000.0,0.00020548,2]
[391862795,1760932241982,-1000.0,0.00020548,2]
[391862798,1760932241991,-1000.0,0.00020548,2]
[391862800,1760932242000,-1000.0,0.00020548,2]
[391862801,1760932242009,-1000.0,0.00020548,2]
[391862803,1760932242018,-1000.0,0.00020548,2]
[391862805,1760932242027,-1000.0,0.00020548,2]
[391862807,1760932242037,-1000.0,0.00020548,2]
[391862809,1760932242046,-1000.0,0.00020548,2]
[391862811,1760932242055,-1000.0,0.00020548,2]
[391862813,1760932242064,-1000.0,0.00020548,2]
[391862815,1760932242073,-1000.0,0.00020548,2]
[391862817,1760932242082,-1000.0,0.00020548,2]
[391862819,1760932242091,-1000.0,0.00020548,2]
[391862820,1760932242100,-1000.0,0.00020548,2]
[391862821,1760932242109,-1000.0,0.00020548,2]
[391862822,1760932242119,-1000.0,0.00020548,2]
[391862823,1760932242128,-1000.0,0.00020548,2]
[391862824,1760932242137,-1000.0,0.00020548,2]
[391862825,1760932242146,-1000.0,0.00020548,2]
[391862826,1760932242155,-1000.0,0.00020548,2]
[391862827,1760932242165,-1000.0,0.00020548,2]
[391862828,1760932242174,-1000.0,0.00020548,2]
[391862829,1760932242183,-1000.0,0.00020548,2]
[391862830,1760932242193,-1000.0,0.00020548,2]
[391862831,1760932242202,-1000.0,0.00020548,2]
[391862832,1760932242214,-1000.0,0.00020548,2]
[391862833,1760932242224,-1000.0,0.00020548,2]
[391862835,1760932242233,-1000.0,0.00020548,2]
[391862836,1760932242242,-1000.0,0.00020548,2]
[391862837,1760932242252,-1000.0,0.00020548,2]
[391862838,1760932242261,-1000.0,0.00020548,2]
[391862839,1760932242271,-1000.0,0.00020548,2]
[391862840,1760932242279,-1000.0,0.00020548,2]
[391862842,1760932242289,-1000.0,0.00020548,2]
[391862843,1760932242298,-1000.0,0.00020548,2]
[391862846,1760932242307,-1000.0,0.00020548,2]
[391862847,1760932242317,-1000.0,0.00020548,2]
[391862848,1760932242326,-1000.0,0.00020548,2]
[391862849,1760932242335,-1000.0,0.00020548,2]
[391862850,1760932242344,-1000.0,0.00020548,2]
[391862852,1760932242353,-1000.0,0.00020548,2]
[391862853,1760932242363,-1000.0,0.00020548,2]
[391862854,1760932242372,-1000.0,0.00020548,2]
[391862856,1760932242381,-1000.0,0.00020548,2]
[391862857,1760932242390,-1000.0,0.00020548,2]
[391862858,1760932242399,-1000.0,0.00020548,2]
[391862859,1760932242409,-1000.0,0.00020548,2]
[391862860,1760932242418,-1000.0,0.00020548,2]
[391862861,1760932242428,-1000.0,0.00020548,2]
[391862862,1760932242444,-151.0,0.00020548,7]
[391862863,1760932242457,-151.0,0.00020548,7]
[391862864,1760932242466,-151.0,0.00020548,7]
[391862865,1760932242475,-151.0,0.00020548,7]
[391862866,1760932242486,-151.0,0.00020548,7]
[391862867,1760932242495,-151.0,0.00020548,7]
[391862870,1760932242505,-600.0,0.00020548,2]
[391862872,1760932242514,-475.93135235,0.00020627,2]
[391862873,1760932242526,-20596.16852797,0.000207,2]
[391862875,1760932242700,-1170.3795753,0.000207,2]
[391862876,1760932242715,-298.98565042,0.000207,2]
[391862877,1760932242728,-328.46770739,0.000207,2]
[391862878,1760932242737,-3000.0,0.00020712,2]
[391862879,1760932242747,-206.76617784,0.00020723,2]
[391862880,1760932242757,-1000.0,0.00020779,2]
[391862881,1760932242767,-1000.0,0.00020795,2]
[391862882,1760932242777,-168.3888056,0.00020822,2]
[391862883,1760932242786,-166.42,0.00020825,2]
[391862884,1760932242796,-24838.5495915,0.0002085,2]
[391862885,1760932242807,-756.115,0.0002085,2]
[391862886,1760932242818,-3287.5,0.0002085,2]
[391862887,1760932242841,-151.0,0.00015,2]
[391862888,1760932242850,-361.27802841,0.0002085,2]
[391862918,1760932243154,-151.0,0.00015,2]
[391862920,1760932243163,-151.0,0.00015,2]
[391862922,1760932243172,-150.174,0.00018178,2]
[391862924,1760932243182,-201.49993865,0.00018356,2]
[391862926,1760932243191,-151.0,0.00018356,2]
[391862928,1760932243200,-37041.26311639,0.0002085,2]
[391862930,1760932243214,-350.0,0.00021,2]
[391862932,1760932243223,-160.84,0.000211,2]
[391862934,1760932243233,-3410.0,0.00021178,2]
[391862936,1760932243242,-786.0,0.00021178,2]
[391862938,1760932243253,-1268.0,0.00021178,2]
[391862940,1760932243262,-2051.0,0.00021178,2]
[391862942,1760932243271,-605.0,0.00021178,2]
[391862943,1760932243280,-1311.0,0.00021178,2]
[391862945,1760932243290,-572.0,0.00021178,2]
[391862948,1760932243299,-817.0,0.00021178,2]
[391862950,1760932243309,-6440.0,0.00021178,2]
[391862952,1760932243320,-2365.76369816,0.00021178,2]
[391863053,1760932350475,-212.90015978,0.00014849,2]
[391863096,1760932566151,770.3174182,0.00034328,30]
[391863101,1760932859957,2000.0,0.00034263,120]
[391863103,1760933006814,2989.29935154,0.00034255,120]
[391863104,1760933021745,1493.00756252,0.00012,2]
[391863105,1760933036345,1290.3695071,0.00034255,120]
[391863106,1760933058157,-189.61,0.00013856,2]
[391863107,1760933058180,-2421.64003017,0.00013983,2]
[391863108,1760933058203,-288.74996983,0.00013983,2]
[391863109,1760933089128,6241.38550338,0.00034255,120]
[391863110,1760933108664,1052.393399,7.945e-05,2]
[391863115,1760933280613,-264.15860222,0.00013699,2]
[391863118,1760933359927,10000.00000099,0.00034226,120]
[391863125,1760933416419,-137.39139778,0.00013699,2]
[391863126,1760933416445,-146.26771112,0.0001377,2]
[391863127,1760933418470,-290.76294189,0.0001377,2]
[391863128,1760933421080,11142.0,0.00034226,30]
[391863129,1760933422214,-382.25705811,0.0001377,2]
[391863130,1760933424150,-300.0,0.0001377,2]
[391863131,1760933428312,-400.0,0.0001377,2]
[391863135,1760933431687,-610.75068884,0.0001377,2]
[391863136,1760933431697,-284.79623426,0.0001377,2]
[391863137,1760933431706,-250.0,0.00013841,2]
[391863138,1760933431715,-250.0,0.00014116,2]
[391863139,1760933431724,-168.0,0.00014464,2]
[391863140,1760933431734,-168.0,0.00014464,2]
[391863141,1760933431743,-179.22588361,0.00014799,2]
[391863142,1760933431752,-179.2258836,0.00014849,2]
[391863143,1760933431762,-500.0,0.00014873,2]
[391863144,1760933431772,-349.67689006,0.00014873,2]
[391863145,1760933431781,-300.0,0.00014898,2]
[391863146,1760933431792,-1200.0,0.00014898,2]
[391863147,1760933431801,-300.0,0.00014898,2]
[391863148,1760933431811,-1000.0,0.00014899,2]
[391863149,1760933431821,-1000.0,0.00014899,2]
[391863150,1760933431831,-372.79494855,0.00014899,2]
[391863151,1760933431840,-346.7217776,0.00014899,2]
[391863152,1760933431850,-179.2258836,0.00014899,2]
[391863153,1760933431860,-150.0,0.00014899,2]
[391863154,1760933431870,-25532.96474542,0.000149,2]
[391863155,1760933431898,-3843.28850387,0.000149,2]
[391863156,1760933431913,-5543.37194689,0.000149,2]
[391863157,1760933431926,-4201.65523545,0.000149,2]
[391863158,1760933431938,-1002.55453634,0.000149,2]
[391863159,1760933431949,-2140.46582211,0.000149,2]
[391863160,1760933431960,-949.15632863,0.000149,2]
[391863161,1760933431972,-373.2980954,0.000149,2]
[391863162,1760933431983,-466.0,0.000149,2]
[391863163,1760933431994,-762.82,0.000149,2]
[391863164,1760933432005,-3250.0,0.000149,2]
[391863192,1760933437661,-1896.96998589,0.000149,2]
[391863193,1760933437671,-169.93780936,0.000149,2]
[391863194,1760933437680,-500.0,0.00014999,2]
[391863195,1760933437689,-545.65,0.00014999,2]
[391863196,1760933437700,-500.0,0.00014999,2]
[391863197,1760933437709,-500.0,0.00014999,2]
[391863198,1760933437719,-258.44373373,0.00014999,2]
[391863199,1760933437728,-500.0,0.00014999,2]
[391863200,1760933437737,-500.0,0.00014999,2]
[391863201,1760933437750,-500.0,0.00014999,2]
[391863202,1760933437759,-648.98728473,0.00014999,2]
[391863203,1760933437767,-289.0868268,0.00014999,2]
[391863204,1760933437777,-24865.05280638,0.00015,2]
[391863205,1760933437789,-296.2499,0.00015,2]
[391863206,1760933437800,-569.0859,0.00015,2]
[391863207,1760933437811,-2114.6090372,0.00015,2]
[391863208,1760933437826,-806.68,0.00015,2]
[391863209,1760933437837,-136.26758827,0.00015,2]
[391863210,1760933437847,-130.94151787,0.00015068,2]
[391863239,1760933441793,-81.04667137,0.00015068,2]
[391863240,1760933441803,-250.0,0.00015068,2]
[391863241,1760933441812,-382.73099577,0.00015068,2]
[391863242,1760933441821,-153.74907044,0.00015068,2]
[391863243,1760933441832,-2346.25092956,0.00015068,2]
[391863244,1760933441842,-300.0,0.00015068,2]
[391863245,1760933441851,-195.0,0.00015068,2]
[391863246,1760933441861,-168.0,0.00015125,2]
[391863247,1760933441871,-168.0,0.00015161,2]
[391863248,1760933441884,-287.70668834,0.00015211,2]
[391863249,1760933441895,-290.50255474,0.00015211,2]
[391863250,1760933441904,-30.01838464,0.00015289,2]
[391863251,1760933441915,-137.98161536,0.00015289,2]
[391863252,1760933441925,-168.0,0.00015372,2]
[391863253,1760933441934,-282.45337679,0.00015381,2]
[391863254,1760933441943,-506.51925215,0.00015421,2]
[391863255,1760933441953,-168.0,0.00015449,2]
[391863256,1760933441966,-174.92242593,0.00015704,2]
[391863257,1760933441977,-2416.07757407,0.00015704,2]
[391863258,1760933441987,-891.87242573,0.00015704,2]
[391863259,1760933442054,-578.51776381,0.00015704,2]
[391863260,1760933442066,-1224.65381046,0.00015704,2]
[391863261,1760933442075,-6450.0,0.00015704,2]
[391863262,1760933442084,-557.0,0.00015704,2]
[391863263,1760933442093,-168.0,0.00015873,2]
[391863264,1760933442104,-3079.0,0.00015895,2]
[391863265,1760933442113,-168.0,0.00015933,2]
[391863266,1760933442123,-255.0,0.00016031,2]
[391863267,1760933442132,-318.02184887,0.0001611,2]
[391863268,1760933442142,-809.07691721,0.00016216,7]
[391863269,1760933442151,-420.0,0.00016307,2]
[391863270,1760933442160,-1680.0,0.00016388,2]
[391863272,1760933442169,-163.73183504,0.00016438,2]
[391863274,1760933442179,-3415.45,0.00016785,2]
[391863275,1760933442188,-250.0,0.00016815,7]
[391863276,1760933442199,-250.0,0.00017,2]
[391863277,1760933442208,-433.0,0.00017253,2]
[391863278,1760933442218,-496.14397308,0.00017321,2]
[391863279,1760933442227,-587.0,0.00017849,2]
[391863280,1760933442237,-599.60298507,0.0001795,2]
[391863281,1760933442247,-166.66,0.0001796,2]
[391863282,1760933442256,-2351.0,0.00018027,2]
[391863283,1760933442266,-150.0,0.00018178,2]
[391863284,1760933442275,-166.66,0.00018338,2]
[391863285,1760933442285,-624.0,0.00018564,2]
[391863286,1760933442294,-150.0,0.00018685,2]
[391863287,1760933442303,-343.55842338,0.00018695,2]
[391863288,1760933442316,-2591.0,0.00018704,2]
[391863289,1760933442325,-6450.0,0.00018704,2]
[391863290,1760933442335,-557.0,0.00018704,2]
[391863291,1760933442344,-166.66,0.00018716,2]
[391863292,1760933442354,-209.0,0.00018724,2]
[391863293,1760933442363,-150.0,0.0001874,2]
[391863294,1760933442373,-150.0,0.00018795,2]
[391863295,1760933442382,-260.32,0.00018795,2]
[391863296,1760933442395,-150.37,0.00018795,2]
[391863297,1760933442405,-254.981,0.00018795,2]
[391863298,1760933442414,-250.0,0.00018795,2]
[391863299,1760933442423,-188.204,0.00018795,2]
[391863300,1760933442432,-150.0,0.00018795,2]
[391863301,1760933442441,-150.353,0.00018795,2]
[391863302,1760933442452,-1268.0,0.00018795,2]
[391863303,1760933442461,-786.0,0.00018795,2]